Workbook

Sheet Лист1
A1: Школа | C1: МБОУ "Стародрожжановская начальная школа- детский сад" ДМР РТ | F1: Утвердил: | G1: должность | H1: директор
A2: Типовое примерное меню приготавливаемых блюд | G2: фамилия | H2: Ханзярова Г.Р
A3: Возрастная категория | E3: 7-11 лет | G3: дата | J3: 2024
H4: день | I4: месяц | J4: год
A5: Неделя | B5: День недели | C5: Прием пищи | D5: Раздел меню | E5: Блюда | F5: Вес блюда, г | G5: Белки | H5: Жиры | I5: Углеводы | J5: Калорийность | K5: № рецептуры | L5: Цена
A6: 1 | B6: 1 | C6: Завтрак | D6: гор.блюдо | E6: Котлета из мяса птицы | F6: 90 | G6: 10.2 | H6: 12.93 | I6: 13.79 | J6: 198 | K6: ТТК
E7: Макаронные изделия отварные с маслом сливочным | F7: 150/5 | G7: 5.7 | H7: 4.3 | I7: 31.99 | J7: 189.3 | K7: №203
D8: гор.напиток | E8: Компот из сухофруктов (75С) | F8: 200 | G8: 0.66 | H8: 0.09 | I8: 22.03 | J8: 92.8 | K8: №349
D9: хлеб | E9: Хлеб ржаной | F9: 30 | G9: 1.98 | H9: 0.36 | I9: 11.88 | J9: 59.4
D10: фрукты
E11: Зеленый горошек к/с (доп. гарнир) | F11: 40 | G11: 1.19 | H11: 2.08 | I11: 2.5 | J11: 33.44 | K11: ТТК
D13: итого | F13: 515 | G13: =SUM(G6:G12) -> 19.73 | H13: =19.73 -> 19.73 | I13: =19.73 -> 19.73 | J13: =19.73 -> 19.73 | L13: 66.76
A14: =A6 -> 1 | B14: =B6 -> 1 | C14: Обед | D14: закуска
D15: 1 блюдо | E15: Рассольник Ленинградский, с куриными фрикадельками, со сметаной | F15: 250/10/5 | G15: 3.51 | H15: 7.16 | I15: 12.96 | J15: 135.95 | K15: №96, 105
D16: 2 блюдо
D17: гарнир
D18: напиток | E18: Компот из свежих яблок с изюмом | F18: 200 | G18: 0.25 | H18: 0.12 | I18: 28.87 | J18: 118.4 | K18: ТТК
D19: хлеб бел.
D20: хлеб черн. | E20: Хлеб ржаной | F20: 30 | G20: 1.98 | H20: 0.36 | I20: 11.88 | J20: 59.4
D23: итого | F23: 495 | G23: =SUM(G14:G22) -> 5.74 | H23: =SUM(H14:H22) -> 7.64 | I23: =SUM(I14:I22) -> 53.71 | J23: =SUM(J14:J22) -> 313.75 | L23: 25
A24: =A6 -> 1 | B24: =B6 -> 1 | C24: Итого за день: | F24: =F13+F23 -> 1010 | G24: =G13+G23 -> 25.47 | H24: =H13+H23 -> 27.37 | I24: =I13+I23 -> 73.44 | J24: =J13+J23 -> 333.48 | L24: =L13+L23 -> 91.76
A25: 1 | B25: 2 | C25: Завтрак | D25: гор.блюдо | E25: Сырники из творога с молочной кашей "Дружба" | F25: 50/150 | G25: 12.92 | H25: 14.39 | I25: 31.09 | J25: 292.26 | K25: №175, 219
D27: гор.напиток | E27: Чай с сахаром | F27: 190/10 | G27: 0.07 | H27: 0.02 | I27: 10.01 | J27: 40 | K27: №376
D28: хлеб | E28: Хлеб ржаной | F28: 40 | G28: 2.64 | H28: 0.48 | I28: 15.84 | J28: 79.2
D29: фрукты | E29: Плоды и ягоды свежие (яблоки) | F29: 100 | G29: 0.4 | H29: 0.4 | I29: 9.8 | J29: 47
D32: итого | F32: 540 | G32: =SUM(G25:G31) -> 16.03 | H32: =SUM(H25:H31) -> 15.29 | I32: =SUM(I25:I31) -> 66.74 | J32: =SUM(J25:J31) -> 458.46 | L32: 66.76
A33: =A25 -> 1 | B33: =B25 -> 2 | C33: Обед | D33: закуска
D34: 1 блюдо | E34: Суп-лапша домашняя с мясом птицы | F34: 250/10 | G34: 5.65 | H34: 6.1 | I34: 11.62 | J34: 132.55 | K34: №113
D35: 2 блюдо
D36: гарнир
D37: напиток | E37: Напиток из шиповника | F37: 200 | G37: 0.68 | H37: 0.28 | I37: 10.78 | J37: 48.2 | K37: ТТК
D38: хлеб бел.
D39: хлеб черн. | E39: Хлеб ржаной | F39: 30 | G39: 1.98 | H39: 0.36 | I39: 11.88 | J39: 59.4
D42: итого | F42: 490 | G42: =SUM(G33:G41) -> 8.31 | H42: =SUM(H33:H41) -> 6.74 | I42: =SUM(I33:I41) -> 34.28 | J42: =SUM(J33:J41) -> 240.15 | L42: 25
A43: =A25 -> 1 | B43: =B25 -> 2 | C43: Итого за день: | F43: =F32+F42 -> 1030 | G43: =G32+G42 -> 24.34 | H43: =H32+H42 -> 22.03 | I43: =I32+I42 -> 101.02 | J43: =J32+J42 -> 698.61 | L43: =L32+L42 -> 91.76
A44: 1 | B44: 3 | C44: Завтрак | D44: гор.блюдо | E44: Гуляш из говядины | F44: 50/50 | G44: 10.39 | H44: 14.79 | I44: 10.3 | J44: 221 | K44: №260
E45: Каша гречневая рассыпчатая | F45: 150 | G45: 3.77 | H45: 2.29 | I45: 39.72 | J45: 214 | K45: №171
D46: гор.напиток | E46: Чай с сахаром, с лимоном | F46: 185/10/5 | G46: 0.11 | H46: 0.02 | I46: 10.15 | J46: 41.32 | K46: №377
D47: хлеб | E47: Хлеб ржаной | F47: 50 | G47: 3.3 | H47: 0.6 | I47: 19.8 | J47: 99
D48: фрукты
E49: Сыр порционно | F49: 10 | G49: 2.63 | H49: 2.66 | I49: 0 | J49: 34.33 | K49: №15
D51: итого | F51: 510 | G51: =SUM(G44:G50) -> 20.2 | H51: =SUM(H44:H50) -> 20.36 | I51: =SUM(I44:I50) -> 79.97 | J51: =SUM(J44:J50) -> 609.65 | L51: 66.76
A52: =A44 -> 1 | B52: =B44 -> 3 | C52: Обед | D52: закуска
D53: 1 блюдо | E53: Шулпа с говядиной | F53: 250/10 | G53: 5.04 | H53: 8.32 | I53: 18.63 | J53: 173.31 | K53: ТТК
D54: 2 блюдо
D55: гарнир
D56: напиток | E56: Компот из урюка | F56: 200 | G56: 0.75 | H56: 0.06 | I56: 27.93 | J56: 116.4 | K56: №348
D57: хлеб бел.
D58: хлеб черн. | E58: Хлеб ржаной | F58: 30 | G58: 1.98 | H58: 0.36 | I58: 11.88 | J58: 59.4
D61: итого | F61: 490 | G61: =SUM(G52:G60) -> 7.77 | H61: =SUM(H52:H60) -> 8.74 | I61: =SUM(I52:I60) -> 58.44 | J61: =SUM(J52:J60) -> 349.11 | L61: 25
A62: =A44 -> 1 | B62: =B44 -> 3 | C62: Итого за день: | F62: =F51+F61 -> 1000 | G62: =G51+G61 -> 27.97 | H62: =H51+H61 -> 29.1 | I62: =I51+I61 -> 138.41 | J62: =J51+J61 -> 958.76 | L62: =L51+L61 -> 91.76
A63: 1 | B63: 4 | C63: Завтрак | D63: гор.блюдо | E63: Котлета из мяса птицы | F63: 90 | G63: 10.2 | H63: 12.93 | I63: 13.79 | J63: 198 | K63: ТТК
E64: Пюре картофельное с маслом сливочным | F64: 150/3 | G64: 4.11 | H64: 3.55 | I64: 30.79 | J64: 202.8 | K64: №312
D65: гор.напиток | E65: Чай с сахаром, с яблоком | F65: 180/10/10 | G65: 0.11 | H65: 0.06 | I65: 10.98 | J65: 44.7 | K65: №376
D66: хлеб | E66: Хлеб пшеничный | F66: 20 | G66: 1.52 | H66: 0.16 | I66: 9.84 | J66: 47
D67: фрукты
E68: Хлеб ржаной | F68: 30 | G68: 1.98 | H68: 0.36 | I68: 11.88 | J68: 59.4
E69: Салат из свеклы отварной с маслом растительным | F69: 60 | G69: 0.84 | H69: 3.61 | I69: 4.96 | J69: 55.68 | K69: №52
D70: итого | F70: 553 | G70: =SUM(G63:G69) -> 18.76 | H70: =SUM(H63:H69) -> 20.67 | I70: =SUM(I63:I69) -> 82.24 | J70: =SUM(J63:J69) -> 607.58 | L70: 66.76
A71: =A63 -> 1 | B71: =B63 -> 4 | C71: Обед | D71: закуска
D72: 1 блюдо | E72: Суп крестьянский с крупой (пшено) с куриными фрикадельками, со сметаной | F72: 250/10/5 | G72: 2.98 | H72: 6.99 | I72: 7.07 | J72: 104.95 | K72: №98
D73: 2 блюдо
D74: гарнир
D75: напиток | E75: Чай с мармеладом | F75: 190/10 | G75: 0.09 | H75: 0.02 | I75: 11.91 | J75: 48.15 | K75: №376
D76: хлеб бел.
D77: хлеб черн. | E77: Хлеб ржаной | F77: 30 | G77: 1.98 | H77: 0.36 | I77: 11.88 | J77: 59.4
D80: итого | F80: 495 | G80: =SUM(G71:G79) -> 5.05 | H80: =SUM(H71:H79) -> 7.37 | I80: =SUM(I71:I79) -> 30.86 | J80: =SUM(J71:J79) -> 212.5 | L80: 25
A81: =A63 -> 1 | B81: =B63 -> 4 | C81: Итого за день: | F81: =F70+F80 -> 1048 | G81: =G70+G80 -> 23.81 | H81: =H70+H80 -> 28.04 | I81: =I70+I80 -> 113.1 | J81: =J70+J80 -> 820.08 | L81: =L70+L80 -> 91.76
A82: 1 | B82: 5 | C82: Завтрак | D82: гор.блюдо | E82: Пельмени мясные отварные с маслом сливочным | F82: 150/5 | G82: 8.79 | H82: 11.2 | I82: 31.4 | J82: 295.65 | K82: №390, 391, 392
D84: гор.напиток | E84: Кофейный напиток с молоком (сахар 20г) | F84: 200 | G84: 3.17 | H84: 2.68 | I84: 15.95 | J84: 100.6 | K84: №379
D85: хлеб | E85: Хлеб ржаной | F85: 30 | G85: 1.98 | H85: 0.36 | I85: 11.88 | J85: 59.4
D86: фрукты | E86: Плоды и ягоды свежие (яблоки) | F86: 100 | G86: 0.4 | H86: 0.4 | I86: 9.8 | J86: 47
E87: Сыр порционно | F87: 15 | G87: 3.95 | H87: 3.99 | I87: 0 | J87: 51.5 | K87: №15
E88: Хлеб пшеничный | F88: 25 | G88: 1.9 | H88: 0.2 | I88: 12.3 | J88: 58.75
D89: итого | F89: 525 | G89: =SUM(G82:G88) -> 20.19 | H89: =SUM(H82:H88) -> 18.83 | I89: =SUM(I82:I88) -> 81.33 | J89: =SUM(J82:J88) -> 612.9 | L89: 66.76
A90: =A82 -> 1 | B90: =B82 -> 5 | C90: Обед | D90: закуска
D91: 1 блюдо | E91: Харчо с мясом птицы, со сметаной | F91: 250/10/5 | G91: 3.18 | H91: 7.4 | I91: 2.1 | J91: 86.8 | K91: №115
D92: 2 блюдо
D93: гарнир
D94: напиток | E94: Компот из сухофруктов | F94: 200 | G94: 0.66 | H94: 0.09 | I94: 22.03 | J94: 92.9 | K94: №349
D95: хлеб бел.
D96: хлеб черн. | E96: Хлеб ржаной | F96: 30 | G96: 1.98 | H96: 0.36 | I96: 11.88 | J96: 59.4
D99: итого | F99: 495 | G99: =SUM(G90:G98) -> 5.82 | H99: =SUM(H90:H98) -> 7.85 | I99: =SUM(I90:I98) -> 36.01 | J99: =SUM(J90:J98) -> 239.1 | L99: 25
A100: =A82 -> 1 | B100: =B82 -> 5 | C100: Итого за день: | F100: =F89+F99 -> 1020 | G100: =G89+G99 -> 26.01 | H100: =H89+H99 -> 26.68 | I100: =I89+I99 -> 117.34 | J100: =J89+J99 -> 852 | L100: =L89+L99 -> 91.76
A101: 2 | B101: 1 | C101: Завтрак | D101: гор.блюдо | E101: Котлета из мяса птицы | F101: 90 | G101: 10.2 | H101: 12.93 | I101: 13.79 | J101: 198 | K101: ТТК
E102: Каша пшенная молочная с маслом сливочным | F102: 180/3 | G102: 4.09 | H102: 5.08 | I102: 37.26 | J102: 216.9 | K102: №182
D103: гор.напиток | E103: Чай "Витаминный" с шиповником | F103: 185/10/5 | G103: 0.24 | H103: 0.09 | I103: 12.43 | J103: 54.2 | K103: №376
D104: хлеб | E104: Хлеб ржаной | F104: 30 | G104: 1.98 | H104: 0.36 | I104: 11.88 | J104: 59.4
D105: фрукты
E106: Хлеб пшеничный | F106: 25 | G106: 1.9 | H106: 0.2 | I106: 12.3 | J106: 58.75
D108: итого | F108: 528 | G108: =SUM(G101:G107) -> 18.41 | H108: =SUM(H101:H107) -> 18.66 | I108: =SUM(I101:I107) -> 87.66 | J108: =SUM(J101:J107) -> 587.25 | L108: 66.76
A109: =A101 -> 2 | B109: =B101 -> 1 | C109: Обед | D109: закуска
D110: 1 блюдо | E110: Суп картофельный с вермишелью, с куриными фрикадельками | F110: 250/10 | G110: 4.05 | H110: 4.16 | I110: 18.25 | J110: 138.85 | K110: №88
D111: 2 блюдо
D112: гарнир
D113: напиток | E113: Чай с сахаром, с лимоном | F113: 185/10/5 | G113: 0.13 | H113: 0.02 | I113: 10.2 | J113: 42 | K113: №377
D114: хлеб бел.
D115: хлеб черн. | E115: Хлеб ржаной | F115: 30 | G115: 1.98 | H115: 0.36 | I115: 11.88 | J115: 59.4
D118: итого | F118: 490 | G118: =SUM(G109:G117) -> 6.16 | H118: =SUM(H109:H117) -> 4.54 | I118: =SUM(I109:I117) -> 40.33 | J118: =SUM(J109:J117) -> 240.25 | L118: 25
A119: =A101 -> 2 | B119: =B101 -> 1 | C119: Итого за день: | F119: =F108+F118 -> 1018 | G119: =G108+G118 -> 24.57 | H119: =H108+H118 -> 23.2 | I119: =I108+I118 -> 127.99 | J119: =J108+J118 -> 827.5 | L119: =L108+L118 -> 91.76
A120: 2 | B120: 2 | C120: Завтрак | D120: гор.блюдо | E120: Плов из говядины с рисовой крупой | F120: 50/150 | G120: 15.95 | H120: 19.55 | I120: 39.75 | J120: 408.42 | K120: №265
D122: гор.напиток | E122: Чай с сахаром | F122: 190/10 | G122: 0.07 | H122: 0.02 | I122: 10.01 | J122: 40 | K122: №376
D123: хлеб | E123: Хлеб ржаной | F123: 20 | G123: 1.32 | H123: 0.24 | I123: 7.92 | J123: 39.6
D124: фрукты | E124: Плоды и ягоды свежие (яблоки) | F124: 100 | G124: 0.4 | H124: 0.4 | I124: 9.8 | J124: 47
E125: Хлеб пшеничный | F125: 25 | G125: 1.9 | H125: 0.2 | I125: 12.3 | J125: 58.75
D127: итого | F127: 545 | G127: =SUM(G120:G126) -> 19.64 | H127: =SUM(H120:H126) -> 20.41 | I127: =SUM(I120:I126) -> 79.78 | J127: =SUM(J120:J126) -> 593.77 | L127: 66.76
A128: =A120 -> 2 | B128: =B120 -> 2 | C128: Обед | D128: закуска
D129: 1 блюдо | E129: Щи из свежей капусты с картофелем с мясом, со сментаной | F129: 250/10/5 | G129: 4.7 | H129: 6.08 | I129: 8.13 | J129: 112.68 | K129: №88
D130: 2 блюдо
D131: гарнир
D132: напиток | E132: Компот из сухофруктов | F132: 200 | G132: 0.66 | H132: 0.09 | I132: 22.03 | J132: 92.9 | K132: №349
D133: хлеб бел.
D134: хлеб черн. | E134: Хлеб ржаной | F134: 30 | G134: 1.98 | H134: 0.36 | I134: 11.88 | J134: 59.4
D137: итого | F137: 495 | G137: =SUM(G128:G136) -> 7.34 | H137: =SUM(H128:H136) -> 6.53 | I137: =SUM(I128:I136) -> 42.04 | J137: =SUM(J128:J136) -> 264.98 | L137: 25
A138: =A120 -> 2 | B138: =B120 -> 2 | C138: Итого за день: | F138: =F127+F137 -> 1040 | G138: =G127+G137 -> 26.98 | H138: =H127+H137 -> 26.94 | I138: =I127+I137 -> 121.82 | J138: =J127+J137 -> 858.75 | L138: =L127+L137 -> 91.76
A139: 2 | B139: 3 | C139: Завтрак | D139: гор.блюдо | E139: Рыба, тушенная в томате с овощами | F139: 50/50 | G139: 9.05 | H139: 6.09 | I139: 3.8 | J139: 105 | K139: №229
E140: Пюре картофельное | F140: 150 | G140: 3.09 | H140: 6.98 | I140: 20.48 | J140: 157.05 | K140: №312
D141: гор.напиток | E141: Компот из свежих яблок (75С) | F141: 200 | G141: 0.16 | H141: 0.16 | I141: 17.9 | J141: 74.6 | K141: №342
D142: хлеб | E142: Хлеб пшеничный | F142: 35 | G142: 2.66 | H142: 0.28 | I142: 17.22 | J142: 82.25
D143: фрукты
E144: капуста тушеная (доп. гарнир) | F144: 50 | G144: 1.03 | H144: 1.62 | I144: 4.71 | J144: 37.55 | K144: №321
D146: итого | F146: 538 | G146: =SUM(G139:G145) -> 15.99 | H146: =SUM(H139:H145) -> 15.13 | I146: =SUM(I139:I145) -> 64.11 | J146: =SUM(J139:J145) -> 456.45 | L146: 66.76
A147: =A139 -> 2 | B147: =B139 -> 3 | C147: Обед | D147: закуска
D148: 1 блюдо | E148: Суп с рисовой крупой и мясными фрикадельками | F148: 250/10 | G148: 2.57 | H148: 5.97 | I148: 1.8 | J148: 70.86 | K148: №86
D149: 2 блюдо
D150: гарнир
D151: напиток | E151: Напиток из шиповника | F151: 200 | G151: 0.68 | H151: 0.28 | I151: 10.78 | J151: 48.2 | K151: ТТК
D152: хлеб бел.
D153: хлеб черн. | E153: Хлеб ржаной | F153: 30 | G153: 1.98 | H153: 0.36 | I153: 11.88 | J153: 59.4
D156: итого | F156: 490 | G156: =SUM(G147:G155) -> 5.23 | H156: =SUM(H147:H155) -> 6.61 | I156: =SUM(I147:I155) -> 24.46 | J156: =SUM(J147:J155) -> 178.46 | L156: 25
A157: =A139 -> 2 | B157: =B139 -> 3 | C157: Итого за день: | F157: =SUM(F146+F156) -> 1028 | G157: =SUM(G156,G146) -> 21.22 | H157: =SUM(H156,H146) -> 21.74 | I157: =SUM(I146+I156) -> 88.57 | J157: =SUM(J146+J156) -> 634.91 | L157: =SUM(L146+L156) -> 91.76
A158: 2 | B158: 4 | C158: Завтрак | D158: гор.блюдо | E158: Тефтели куриные с гречневой крупой в сметанно-томатном соусе | F158: 60/40 | G158: 3.17 | H158: 5.19 | I158: 9.85 | J158: 118.01 | K158: ТТК
E159: Макаронные изделия отварные с маслом сливочным | F159: 180/3 | G159: 6.64 | H159: 7.6 | I159: 31.78 | J159: 221.94 | K159: №203
D160: гор.напиток | E160: Какао с молоком | F160: 200 | G160: 4.08 | H160: 3.54 | I160: 7.6 | J160: 78.6 | K160: №382
D161: хлеб | E161: Хлеб пшеничный | F161: 30 | G161: 2.28 | H161: 0.24 | I161: 14.76 | J161: 70.5
D162: фрукты
D165: итого | F165: 513 | G165: =SUM(G158:G164) -> 16.17 | H165: =SUM(H158:H164) -> 16.57 | I165: =SUM(I158:I164) -> 63.99 | J165: =SUM(J158:J164) -> 489.05 | L165: 66.76
A166: =A158 -> 2 | B166: =B158 -> 4 | C166: Обед | D166: закуска
D167: 1 блюдо | E167: Суп картофельный с горохом, с куриными фрикадельками | F167: 250/10 | G167: 6.29 | H167: 5.47 | I167: 16.54 | J167: 153.25 | K167: №102
D168: 2 блюдо
D169: гарнир
D170: напиток | E170: Чай с сахаром | F170: 190/10 | G170: 0.07 | H170: 0.02 | I170: 10.01 | J170: 40 | K170: №376
D171: хлеб бел.
D172: хлеб черн. | E172: Хлеб ржаной | F172: 30 | G172: 1.98 | H172: 0.36 | I172: 11.88 | J172: 59.4
D175: итого | F175: 490 | G175: =SUM(G166:G174) -> 8.34 | H175: =SUM(H166:H174) -> 5.85 | I175: =SUM(I166:I174) -> 38.43 | J175: =SUM(J166:J174) -> 252.65 | L175: 25
A176: =A158 -> 2 | B176: =B158 -> 4 | C176: Итого за день: | F176: =F165+F175 -> 1003 | G176: =G165+G175 -> 24.51 | H176: =H165+H175 -> 22.42 | I176: =I165+I175 -> 102.42 | J176: =J165+J175 -> 741.7 | L176: =L165+L175 -> 91.76
A177: 2 | B177: 5 | C177: Завтрак | D177: гор.блюдо | E177: Овощи тушеные с мясом | F177: 50/150 | G177: 12.48 | H177: 15.68 | I177: 19.34 | J177: 271.5 | K177: №143, 241
D179: гор.напиток | E179: Компот из сухофруктов (75С) | F179: 200 | G179: 0.66 | H179: 0.09 | I179: 22.03 | J179: 92.8 | K179: №349
D180: хлеб | E180: Хлеб пшеничный | F180: 30 | G180: 2.28 | H180: 0.24 | I180: 14.76 | J180: 70.5
D181: фрукты | E181: Плоды и ягоды свежие (яблоки) | F181: 100 | G181: 0.4 | H181: 0.4 | I181: 9.8 | J181: 47
D184: итого | F184: 530 | G184: =SUM(G177:G183) -> 15.82 | H184: =SUM(H177:H183) -> 16.41 | I184: =SUM(I177:I183) -> 65.93 | J184: =SUM(J177:J183) -> 481.8 | L184: 66.76
A185: =A177 -> 2 | B185: =B177 -> 5 | C185: Обед | D185: закуска
D186: 1 блюдо | E186: Рассольник домашний с мясными фрикадельками | F186: 250/10 | G186: 4.09 | H186: 6.26 | I186: 12.76 | J186: 134.11 | K186: №95
D187: 2 блюдо
D188: гарнир
D189: напиток | E189: Компот из изюма и урюка | F189: 200 | G189: 0.55 | H189: 0.07 | I189: 18.89 | J189: 79.3 | K189: ТТК
D190: хлеб бел.
D191: хлеб черн. | E191: Хлеб ржаной | F191: 30 | G191: 1.98 | H191: 0.36 | I191: 11.88 | J191: 59.4
D194: итого | F194: 490 | G194: =SUM(G185:G193) -> 6.62 | H194: =SUM(H185:H193) -> 6.69 | I194: =SUM(I185:I193) -> 43.53 | J194: =SUM(J185:J193) -> 272.81 | L194: 25
A195: =A177 -> 2 | B195: =B177 -> 5 | C195: Итого за день: | F195: =F184+F194 -> 1020 | G195: =G184+G194 -> 22.44 | H195: =H184+H194 -> 23.1 | I195: =I184+I194 -> 109.46 | J195: =J184+J194 -> 754.61 | L195: =L184+L194 -> 91.76
C196: Среднее значение за период: | F196: =(F24+F43+F62+F81+F100+F119+F138+F157+F176+F195)/(IF(F24=0,0,1)+IF(F43=0,0,1)+IF(F62=0,0,1)+IF(F81=0,0,1)+IF(F100=0,0,1)+IF(F119=0,0,1)+IF(F138=0,0,1)+IF(F157=0,0,1)+IF(F176=0,0,1)+IF(F195=0,0,1)) -> 1021.7 | G196: =(G24+G43+G62+G81+G100+G119+G138+G157+G176+G195)/(IF(G24=0,0,1)+IF(G43=0,0,1)+IF(G62=0,0,1)+IF(G81=0,0,1)+IF(G100=0,0,1)+IF(G119=0,0,1)+IF(G138=0,0,1)+IF(G157=0,0,1)+IF(G176=0,0,1)+IF(G195=0,0,1)) -> 24.732 | H196: =(H24+H43+H62+H81+H100+H119+H138+H157+H176+H195)/(IF(H24=0,0,1)+IF(H43=0,0,1)+IF(H62=0,0,1)+IF(H81=0,0,1)+IF(H100=0,0,1)+IF(H119=0,0,1)+IF(H138=0,0,1)+IF(H157=0,0,1)+IF(H176=0,0,1)+IF(H195=0,0,1)) -> 25.062 | I196: =(I24+I43+I62+I81+I100+I119+I138+I157+I176+I195)/(IF(I24=0,0,1)+IF(I43=0,0,1)+IF(I62=0,0,1)+IF(I81=0,0,1)+IF(I100=0,0,1)+IF(I119=0,0,1)+IF(I138=0,0,1)+IF(I157=0,0,1)+IF(I176=0,0,1)+IF(I195=0,0,1)) -> 109.357 | J196: =(J24+J43+J62+J81+J100+J119+J138+J157+J176+J195)/(IF(J24=0,0,1)+IF(J43=0,0,1)+IF(J62=0,0,1)+IF(J81=0,0,1)+IF(J100=0,0,1)+IF(J119=0,0,1)+IF(J138=0,0,1)+IF(J157=0,0,1)+IF(J176=0,0,1)+IF(J195=0,0,1)) -> 748.04 | L196: =(L24+L43+L62+L81+L100+L119+L138+L157+L176+L195)/(IF(L24=0,0,1)+IF(L43=0,0,1)+IF(L62=0,0,1)+IF(L81=0,0,1)+IF(L100=0,0,1)+IF(L119=0,0,1)+IF(L138=0,0,1)+IF(L157=0,0,1)+IF(L176=0,0,1)+IF(L195=0,0,1)) -> 91.76
